bitfinex/quotes_ETHUSD_20241101
["timestamp","ask_amount","ask_price","bid_price","bid_amount"]
[1730479045101,10.76918213,2519.0,2518.9,1.7e-06]
[1730479045502,11.31814553,2519.0,2518.9,1.7e-06]
[1730479048736,11.93972897,2519.0,2518.9,1.7e-06]
[1730479049299,11.93972897,2519.0,2517.2,4.05204539]
[1730479049300,0.7859,2517.5,2517.1,0.41154316]
[1730479049544,3.97284,2517.1,2516.9,0.001]
[1730479049728,14.63548599,2517.0,2516.9,0.001]
[1730479049904,14.48820199,2517.0,2516.9,0.001]
[1730479050104,9.77484695,2517.0,2516.9,0.001]
[1730479050305,9.70118695,2517.0,2516.9,0.001]
[1730479050505,6.97377,2516.5,2516.4,0.1232417]
[1730479050734,8.06851,2516.5,2516.4,0.1232417]
[1730479051405,8.06851,2516.5,2515.1,0.5]
[1730479051624,8.06851,2516.5,2513.9,4.1010317]
[1730479051625,0.7694,2514.8,2513.9,4.1010317]
[1730479051938,0.7694,2514.8,2513.9,0.1232417]
[1730479051939,3.97718,2514.4,2513.9,0.1232417]
[1730479052138,4.61017779,2514.3,2513.9,0.1232417]
[1730479052354,0.63291779,2514.3,2513.9,0.1232417]
[1730479052652,3.97718,2514.4,2513.9,0.1232417]
[1730479052653,3.0,2514.4,2513.9,0.1232417]
[1730479052842,0.7752,2515.2,2514.5,3.97677]
[1730479053159,3.0,2514.9,2514.3,3.97722]
[1730479053370,6.97681,2514.6,2513.9,4.1010217]
[1730479053537,3.0,2514.4,2513.9,0.1232417]
[1730479053718,3.97674,2514.7,2514.0,3.97769]
[1730479054035,3.97705,2514.5,2513.9,0.1232417]
[1730479054235,6.9771,2514.4,2513.9,0.1232417]
[1730479054560,1.095415,2514.3,2513.9,4.1009817]
[1730479054852,0.697626,2514.8,2513.9,4.1011117]
[1730479055164,0.697626,2514.8,2514.4,3.97695]
[1730479055461,3.97634,2514.9,2514.2,3.97736]
[1730479055618,3.0,2514.8,2514.3,3.9772]
[1730479055820,3.0,2515.0,2514.5,3.9769]
[1730479056553,3.9764,2514.9,2514.1,3.97746]
[1730479056759,3.0,2515.0,2514.2,3.97725]
[1730479056945,3.0,2515.0,2512.8,0.8075]
[1730479056946,5.27629294,2514.3,2512.8,0.8075]
[1730479057118,3.97861,2513.5,2512.8,4.78699]
[1730479057316,3.0,2513.2,2512.9,0.06734485]
[1730479057564,3.97903,2513.2,2512.9,0.06734485]
[1730479057905,1.39021502,2513.7,2513.2,0.7204]
[1730479057906,3.97828,2513.7,2513.2,0.7204]
[1730479058022,3.97813,2513.8,2513.2,0.7204]
[1730479058228,3.97813,2513.8,2512.2,5.27629294]
[1730479058229,3.97819,2513.7,2513.3,0.06637061]
[1730479058537,0.397813,2513.8,2513.1,3.97899]
[1730479058749,3.97797,2513.9,2513.3,3.9788]
[1730479059057,4.78444,2514.1,2513.4,4.0447971]
[1730479059269,4.78444,2514.1,2513.4,0.0661271]
[1730479059468,8.76212,2514.1,2513.4,4.0446871]
[1730479059670,4.50506929,2514.2,2513.5,3.97838]
[1730479059874,3.9772,2514.4,2513.7,3.97805]
[1730479060045,3.9771,2514.4,2513.7,3.97805]
[1730479060244,3.97708,2514.5,2513.7,3.97805]
[1730479060245,3.97708,2514.5,2513.9,3.97786]
[1730479060448,0.697604,2514.9,2513.8,0.07446086]
[1730479060651,7.95308,2514.8,2514.1,3.97756]
[1730479060948,3.97725,2514.3,2514.0,0.8107]
[1730479061276,3.97742,2514.2,2513.6,0.8107]
[1730479061660,3.97726,2514.3,2513.7,0.07473907]
[1730479061865,3.0,2513.8,2513.7,0.07473907]
[1730479062244,3.0,2513.8,2513.3,3.9787]
[1730479062438,3.0,2513.8,2513.7,0.04062471]
[1730479062643,3.697798,2513.8,2513.2,3.97889]
[1730479062989,3.697798,2513.8,2513.1,3.97903]
[1730479062990,0.7925,2513.7,2513.1,3.97903]
[1730479063276,4.77072,2513.7,2513.1,3.97903]
[1730479063440,8.74903,2513.7,2513.1,3.97903]
[1730479063778,4.77072,2513.7,2513.1,3.97903]
[1730479064272,3.97773,2514.0,2513.4,3.97856]
[1730479064495,3.97607,2515.1,2513.4,3.97856]
[1730479064496,3.97674,2514.7,2514.1,3.97755]
[1730479064644,3.97645,2514.8,2513.9,4.77649]
[1730479064971,3.97672,2514.7,2514.1,3.97753]
[1730479065138,4.851297,2514.7,2514.1,3.97753]
[1730479065338,4.851297,2514.7,2513.5,3.9784]
[1730479065339,5.32864168,2514.6,2513.5,3.9784]
[1730479065541,3.97757,2514.1,2513.5,3.9784]
[1730479065771,3.97731,2514.3,2513.6,3.97824]
[1730479065772,3.97742,2514.2,2513.6,3.97824]
[1730479066179,6.97757,2514.1,2513.5,3.9784]
[1730479066841,6.97756,2514.2,2513.6,3.97821]
[1730479067181,6.97756,2514.2,2513.7,3.97814]
[1730479067182,6.97743,2514.2,2513.7,3.97814]
[1730479067336,6.97701,2514.5,2513.5,3.97851]
[1730479067534,6.97701,2514.5,2514.0,3.9777]
[1730479067734,4.851277,2514.7,2513.9,3.97778]
[1730479067735,4.851277,2514.7,2514.1,4.03143346]
[1730479068045,4.851277,2514.7,2514.1,0.05389346]
[1730479068046,3.97717,2514.4,2514.1,0.05389346]
[1730479068354,3.97717,2514.4,2513.4,3.97859]
[1730479068355,4.772564,2514.4,2513.6,0.7753]
[1730479068664,3.97685,2514.6,2514.0,3.97768]
[1730479068847,3.97685,2514.6,2513.6,4.75356]
[1730479068848,4.8045,2514.9,2513.9,0.7753]
[1730479069051,3.97646,2514.8,2514.1,0.05988162]
[1730479069251,4.73635,2515.2,2513.9,0.7753]
[1730479069252,3.97623,2515.0,2514.4,3.97708]
[1730479069667,8.71238,2515.2,2514.5,4.04320351]
[1730479069863,5.607648,2515.2,2514.5,4.04320351]
[1730479070071,5.607648,2515.2,2514.5,4.80240351]
[1730479070281,4.73641,2515.2,2514.6,3.97672]
[1730479070487,8.71232,2515.2,2514.6,3.97672]
[1730479070657,3.97591,2515.2,2514.7,0.06590698]
[1730479070980,3.9757,2515.3,2514.7,4.04237698]
[1730479071187,3.9757,2515.3,2514.8,3.97642]
[1730479071490,3.9757,2515.3,2514.8,0.06566374]
[1730479071638,3.0,2515.2,2514.8,0.06566374]
[1730479071839,3.0,2515.2,2514.6,3.97665]
[1730479072086,6.97596,2515.2,2514.9,0.06542052]
[1730479072287,3.0,2515.2,2514.6,3.97665]
[1730479072445,3.0,2515.2,2515.0,0.06517732]
[1730479072646,3.0,2515.2,2514.8,3.97644]
[1730479072900,3.0,2515.2,2515.0,0.06517732]
[1730479073045,3.0,2515.2,2514.9,0.06542052]
[1730479073248,3.97608,2515.1,2514.6,3.97668]
[1730479073446,3.0,2515.1,2515.0,0.06517732]
[1730479073652,3.97598,2515.1,2514.6,3.97668]
[1730479073946,6.97598,2515.1,2515.0,0.06517732]
[1730479074197,3.97598,2515.1,2514.6,3.97668]
[1730479074381,3.0,2515.2,2515.0,0.06517732]
[1730479074546,6.97586,2515.2,2515.0,0.06517732]
[1730479075044,6.97586,2515.2,2514.6,3.97668]
[1730479075239,6.97598,2515.1,2515.0,0.06517732]
[1730479075475,6.97598,2515.1,2514.6,3.97668]
[1730479075476,5.371144,2515.1,2514.6,3.97668]
[1730479075776,3.0,2515.2,2515.0,0.06517732]
[1730479075950,3.97575,2515.3,2515.0,0.06517732]
[1730479076952,3.97587,2515.2,2514.6,3.97668]
[1730479077317,3.97623,2515.0,2514.5,0.7592]
[1730479077582,3.0,2515.1,2514.7,0.05858398]
[1730479077884,4.673757,2515.0,2514.6,0.06569925]
[1730479078124,4.673757,2515.0,2514.5,0.7592]
[1730479078420,3.0,2515.1,2514.6,0.06525987]
[1730479078622,3.97597,2515.2,2514.6,0.06525987]
[1730479078623,3.97584,2515.2,2514.7,3.97654]
[1730479078804,3.97601,2515.1,2514.6,0.06525987]
[1730479079009,3.97647,2514.8,2514.3,3.97713]
[1730479079208,3.97647,2514.8,2514.6,0.06525987]
[1730479079513,3.97631,2514.9,2514.3,3.97713]
[1730479079680,0.6628,2515.0,2514.6,0.05800878]
[1730479079882,0.6628,2515.0,2514.5,3.9769]
[1730479079883,3.97623,2515.0,2514.5,3.9769]
[1730479080100,4.373853,2515.0,2514.5,3.9769]
[1730479080315,4.373853,2515.0,2514.6,0.06525987]
[1730479080828,4.373853,2515.0,2514.4,3.977]
[1730479080829,4.345253,2515.0,2514.4,3.977]
[1730479081119,3.9763,2514.9,2514.6,0.06525987]
[1730479081305,6.93977,2514.6,2514.5,0.06550315]
[1730479081510,3.993977,2514.6,2514.0,3.9777]
[1730479081740,3.97607,2515.1,2514.0,3.9777]
[1730479081741,3.97608,2515.1,2514.4,3.97707]
[1730479082068,3.97561,2515.4,2514.7,3.97654]
[1730479082208,3.97545,2515.5,2514.5,0.8294]
[1730479082209,3.97545,2515.5,2514.9,3.97621]
[1730479082411,3.97515,2515.7,2515.1,3.97595]
[1730479082653,0.87841824,2515.9,2515.2,0.8294]
[1730479082815,1.59062,2516.8,2515.8,3.97485]
[1730479082816,0.7864,2516.3,2515.8,3.97485]
[1730479083020,0.7864,2516.3,2515.9,0.8294]
[1730479083021,0.476044,2516.3,2515.9,0.8294]
[1730479083225,3.97372,2516.6,2515.9,4.80396]
[1730479083441,3.97346,2516.7,2515.9,4.80404]
[1730479083612,3.97346,2516.7,2515.9,4.80403]
[1730479083613,3.89104,2516.6,2515.9,4.80403]
[1730479083963,3.81534,2516.6,2516.0,3.97454]
[1730479084108,3.97368,2516.6,2515.9,4.80403]
[1730479084310,3.97346,2516.7,2516.1,3.97432]
[1730479084509,0.794672,2516.7,2516.2,3.97424]
[1730479084733,4.768212,2516.7,2516.0,3.97445]
[1730479084944,4.768212,2516.7,2516.1,3.97428]
[1730479085148,4.768212,2516.7,2516.0,3.97453]
[1730479085319,3.97371,2516.6,2516.0,3.97453]
[1730479085643,3.97371,2516.6,2515.6,4.78439]
[1730479085644,3.97396,2516.4,2515.6,4.78439]
[1730479085843,3.97417,2516.3,2515.6,4.78436]
[1730479086412,0.8064,2516.5,2515.6,0.8093]
[1730479086413,3.0,2516.4,2515.6,0.8093]
[1730479086609,3.97405,2516.4,2515.6,0.8093]
[1730479086844,3.97405,2516.4,2515.7,3.97491]
[1730479086845,3.0,2516.3,2515.7,3.97491]
[1730479087269,3.97437,2516.2,2515.6,0.8093]
[1730479087413,3.97457,2516.0,2515.4,3.97543]
[1730479087618,6.97448,2516.1,2515.5,3.97531]
[1730479087927,6.91608,2516.1,2515.5,3.97531]
[1730479088246,3.97437,2516.2,2515.0,4.80636]
[1730479088247,3.97513,2515.7,2515.0,4.80636]
[1730479088551,4.4895019,2516.1,2515.5,3.97522]
[1730479088753,3.97442,2516.1,2515.5,3.97522]
[1730479088959,3.97464,2516.0,2515.3,7.95111]
[1730479089335,3.97464,2516.0,2515.4,3.97548]
[1730479089579,3.97464,2516.0,2515.5,3.97533]
[1730479089867,7.94841,2516.3,2515.6,4.80524]
[1730479090036,3.0,2516.2,2515.6,4.80524]
[1730479090237,6.97425,2516.2,2515.6,4.80524]
[1730479090771,3.0,2516.2,2515.7,3.97501]
[1730479090933,3.0,2516.2,2515.6,0.8302]
[1730479091135,6.97432,2516.2,2515.6,4.80531]
[1730479091347,3.0,2516.2,2515.7,3.97497]
[1730479091549,3.0,2516.4,2515.9,3.97464]
[1730479091768,3.97358,2516.7,2516.0,3.97456]
[1730479091972,0.7832,2516.8,2516.3,3.97401]
[1730479092173,4.75654,2516.8,2516.2,4.78081]
[1730479092345,4.79483,2517.1,2516.2,4.78081]
[1730479092549,3.97324,2516.9,2516.3,3.97399]
[1730479092776,4.79483,2517.1,2516.3,3.97399]
[1730479092934,0.479483,2517.0,2516.3,3.97399]
[1730479093135,0.479483,2517.0,2516.5,3.97368]
[1730479093385,3.97251,2517.3,2516.5,3.97362]
[1730479093386,3.97268,2517.2,2516.5,3.97362]
[1730479093539,0.8219,2517.4,2516.7,3.97334]
[1730479093740,0.8219,2517.4,2516.6,3.9736]
[1730479093959,4.79437,2517.4,2516.8,0.7592]
[1730479094164,4.79437,2517.4,2516.8,4.73239]
[1730479094471,3.97211,2517.6,2516.9,3.97305]
[1730479095065,3.97189,2517.7,2516.9,3.97305]
[1730479095253,3.97215,2517.6,2516.9,3.97305]
[1730479095860,3.97158,2517.9,2517.2,3.97252]
[1730479096064,4.368738,2517.9,2517.3,3.9725]
[1730479096439,0.397158,2517.9,2517.4,3.97226]
[1730479096635,0.397158,2517.9,2517.3,3.97241]
[1730479096854,4.368738,2517.9,2517.3,3.97243]
[1730479097053,0.7598,2517.7,2517.0,0.7804]
[1730479097282,3.97203,2517.6,2517.0,0.7804]
[1730479097489,0.473183,2517.5,2517.0,0.7804]
[1730479097859,4.445413,2517.5,2517.0,0.7804]
[1730479098062,4.445413,2517.5,2516.7,4.78207]
[1730479098063,3.97245,2517.4,2516.7,4.78207]
[1730479098390,3.97308,2517.0,2516.4,0.8087]
[1730479099187,3.8119,2517.1,2516.5,3.97375]
[1730479099487,3.8119,2517.1,2516.5,7.9475]
[1730479099488,0.778464,2517.0,2516.5,7.9475]
[1730479099807,0.473183,2517.5,2517.1,3.97273]
[1730479100094,0.8119,2517.7,2516.7,0.8087]
[1730479100095,1.83381782,2517.7,2516.7,0.8087]
[1730479100250,3.97276,2517.2,2516.4,3.97393]
[1730479100451,3.97251,2517.3,2516.4,0.8087]
[1730479100655,3.97251,2517.3,2516.6,3.97351]
[1730479100891,3.97242,2517.4,2516.6,3.97351]
[1730479101184,0.397242,2517.3,2516.5,3.97377]
[1730479101488,3.97267,2517.2,2516.6,3.97351]
[1730479101693,3.397242,2517.3,2516.6,3.97351]
[1730479101889,7.369782,2517.3,2516.6,3.97351]
[1730479102060,7.369782,2517.3,2516.7,3.97343]
[1730479102255,3.397242,2517.3,2516.7,7.9468]
[1730479102561,3.0,2517.5,2516.9,3.97306]
[1730479103007,3.0,2517.3,2516.8,3.97324]
[1730479103291,6.9722,2517.5,2517.0,0.753]
[1730479103604,3.0,2517.8,2517.1,3.97281]
[1730479103887,3.97227,2517.5,2517.0,0.753]
[1730479104090,3.97198,2517.7,2517.0,0.753]
[1730479104310,3.0,2517.6,2517.0,0.753]
[1730479105028,3.0,2517.8,2517.1,3.97281]
[1730479105194,6.9719,2517.7,2517.1,3.97281]
[1730479105719,3.0,2517.7,2517.1,3.97274]
[1730479105873,3.0,2517.7,2517.2,3.97262]
[1730479106077,6.97197,2517.7,2517.0,4.72594]
[1730479106328,6.97197,2517.7,2517.0,0.753]
[1730479106329,6.97201,2517.7,2517.0,0.753]
[1730479106492,3.97403,2516.4,2515.7,3.97496]
[1730479106691,3.0,2516.1,2515.6,0.7746]
[1730479107016,3.0,2516.1,2515.3,4.75025]
[1730479107017,3.97456,2516.0,2515.3,4.75025]
[1730479107213,3.97456,2516.0,2515.4,3.97548]
[1730479107420,7.94923,2516.0,2515.4,3.97548]
[1730479107582,6.9744,2516.1,2515.4,3.97538]
[1730479107777,4.094871,2516.1,2515.6,3.97516]
[1730479107978,3.97457,2516.0,2515.4,3.97538]
[1730479108285,3.97457,2516.0,2515.2,7.95145]
[1730479108286,0.8157,2516.0,2515.2,7.95145]
[1730479108481,3.97484,2515.9,2515.2,3.97571]
[1730479108988,3.97499,2515.8,2515.0,3.97602]
[1730479109205,4.754059,2515.8,2515.2,3.97569]
[1730479109408,4.7903,2516.0,2515.3,3.97566]
[1730479109610,3.0,2515.9,2515.4,3.97542]
[1730479109996,7.79028,2516.0,2515.4,3.97542]
[1730479110223,7.79028,2516.0,2515.4,7.95084]
[1730479110520,7.79028,2516.0,2515.5,3.97524]
[1730479110521,3.8157,2516.0,2515.5,3.97524]
[1730479110728,3.97456,2516.0,2515.4,4.74652]
[1730479110928,3.0,2515.9,2515.4,4.74652]
[1730479111298,3.0,2515.9,2515.5,3.97523]
[1730479111481,3.0,2515.9,2515.4,4.74652]
[1730479112699,3.0,2516.1,2515.4,0.7711]
[1730479112895,3.775795,2516.1,2515.4,0.7711]
[1730479113135,3.0,2515.9,2515.4,0.7711]
[1730479113303,3.775795,2516.1,2515.4,4.74652]
[1730479113506,3.0,2516.2,2515.7,3.97495]
[1730479113741,0.7836,2516.3,2515.7,3.97499]
[1730479114441,0.7836,2516.3,2515.6,3.97503]
[1730479114442,3.0,2516.2,2515.6,3.97503]
[1730479114625,3.0,2516.2,2515.7,3.97498]
[1730479114802,0.81986592,2516.8,2515.4,0.7711]
[1730479114803,0.8072,2516.7,2515.9,3.97463]
[1730479115240,0.8072,2516.7,2516.1,3.97432]
[1730479115574,0.81986592,2517.0,2516.4,3.97383]
[1730479115575,4.78951,2517.0,2516.4,3.97383]
[1730479115844,3.97251,2517.3,2516.5,3.97367]
[1730479116001,4.78891,2517.3,2516.5,3.97367]
[1730479116196,4.78891,2517.3,2516.4,0.7708]
[1730479116197,1.95941246,2517.3,2516.7,3.97336]
[1730479116424,3.97219,2517.5,2516.5,3.97377]
[1730479116738,3.97249,2517.4,2516.7,3.97344]
[1730479117052,3.97221,2517.5,2516.9,3.97305]
[1730479117401,3.97221,2517.5,2516.8,3.97319]
[1730479117611,3.0,2517.4,2516.8,3.97319]
[1730479118343,4.25355078,2517.4,2516.8,3.97319]
[1730479118811,3.8164,2517.6,2516.8,3.97319]
[1730479119133,3.8164,2517.6,2516.9,3.97304]
[1730479119134,7.78844,2517.6,2516.9,3.97304]
[1730479119352,3.0,2517.4,2516.8,3.97329]
[1730479119558,3.0,2517.4,2516.7,3.97345]
[1730479119559,0.8164,2517.6,2517.2,3.97262]
[1730479119777,0.8164,2517.6,2517.0,4.72849]
[1730479119778,0.8164,2517.6,2517.0,0.7556]
[1730479120053,0.8164,2517.6,2517.0,4.7285]
[1730479120225,0.8164,2517.6,2517.0,8.70138]
[1730479120426,0.8164,2517.6,2517.1,3.97282]
[1730479120644,0.7662,2517.9,2517.1,3.97282]
[1730479120917,0.7662,2517.9,2517.0,0.7556]
[1730479120918,4.79122592,2518.1,2517.3,3.97239]
[1730479121118,0.81986592,2518.2,2517.6,4.76834]
[1730479121347,4.73724,2518.3,2517.6,4.76834]
[1730479121622,0.7662,2518.3,2517.7,3.97176]
[1730479121822,0.7662,2518.3,2517.8,3.97162]
[1730479122018,4.76756,2518.6,2517.8,3.97162]
[1730479122360,4.76756,2518.6,2518.1,3.97123]
[1730479122361,1.79164038,2518.6,2518.1,3.97123]
[1730479122564,0.7971,2518.6,2518.0,3.97139]
[1730479122764,0.7971,2518.6,2517.8,7.94344]
[1730479123107,0.772,2518.9,2518.3,7.94174]
[1730479123460,0.772,2518.9,2518.3,3.97084]
[1730479123764,0.772,2518.9,2518.3,7.94167]
[1730479124260,0.772,2518.9,2518.3,3.97083]
[1730479124562,0.772,2518.9,2517.8,5.27629294]
[1730479124563,3.97248,2517.4,2516.7,3.97336]
[1730479124863,3.97212,2517.6,2516.8,3.9732]
[1730479124864,7.77973,2517.5,2516.8,3.9732]
[1730479125154,7.77973,2517.5,2516.9,3.97303]
[1730479125155,3.8074,2517.5,2516.9,3.97303]
[1730479125720,4.796987,2518.1,2516.9,3.97303]
[1730479125721,0.8062,2517.8,2517.0,3.97298]
[1730479126025,3.0,2517.7,2517.1,3.97282]
[1730479126220,3.0,2517.7,2517.2,3.97265]
[1730479126471,3.0,2517.7,2517.0,4.76178]
[1730479126652,6.97191,2517.7,2516.9,4.370433]
[1730479126877,3.97221,2517.5,2516.9,3.97313]
[1730479128150,3.97251,2517.3,2516.7,0.7888]
[1730479128355,3.97251,2517.3,2516.7,4.76216]
[1730479128596,3.97236,2517.4,2516.7,0.7888]
[1730479129097,3.9723,2517.5,2516.7,4.76211]
[1730479129277,3.97251,2517.3,2516.7,4.76211]
[1730479129488,7.94465,2517.5,2516.8,3.97327]
[1730479129890,8.5288679,2517.5,2516.8,7.94648]
[1730479130058,4.5565179,2517.5,2516.8,7.94648]
[1730479130401,6.97199,2517.7,2517.1,3.97274]
[1730479130697,3.97213,2517.6,2516.9,3.97314]
[1730479131068,3.97213,2517.6,2515.3,0.767]
[1730479131069,3.0,2516.8,2515.3,0.767]
[1730479131275,3.97535,2515.6,2515.0,3.97603]
[1730479131497,3.97535,2515.6,2515.0,3.97613]
[1730479131659,3.97504,2515.7,2515.0,3.97605]
[1730479132165,3.97527,2515.6,2515.0,3.97605]
[1730479132366,3.97519,2515.6,2515.0,3.97605]
[1730479132570,3.97504,2515.7,2515.0,3.97605]
[1730479132571,7.95015,2515.7,2515.0,3.97604]
[1730479132761,3.97524,2515.6,2515.0,3.97604]
[1730479133298,3.97504,2515.7,2515.0,3.97604]
[1730479133591,3.97504,2515.7,2515.0,3.97601]
[1730479134505,3.97535,2515.5,2514.9,0.767]
[1730479134670,3.97543,2515.5,2514.6,4.72838]
[1730479134876,3.97563,2515.4,2514.8,3.97637]
[1730479135385,3.97543,2515.5,2514.8,3.97637]
[1730479135386,3.97543,2515.5,2514.8,3.97636]
[1730479135705,3.97543,2515.5,2515.0,3.97604]
[1730479136085,3.97543,2515.5,2514.8,3.9763]
[1730479136270,3.97559,2515.4,2514.8,3.9763]
[1730479136478,7.95088,2515.5,2514.9,3.97621]
[1730479136698,3.97543,2515.5,2514.8,3.9763]
[1730479136888,3.97559,2515.4,2514.9,3.97626]
[1730479137287,3.97559,2515.4,2514.8,3.9763]
[1730479137788,3.97543,2515.5,2514.9,3.97619]
[1730479138275,3.97543,2515.5,2514.8,3.9763]
[1730479138276,3.97535,2515.5,2514.8,3.9763]
[1730479138596,3.97535,2515.5,2514.6,4.72841]
[1730479138597,3.97584,2515.2,2514.6,0.7517]
[1730479138803,3.97598,2515.1,2514.6,0.7517]
[1730479138973,3.97615,2515.0,2514.2,0.8274]
[1730479139308,3.97625,2515.0,2514.4,3.97708]
[1730479139609,7.95249,2515.0,2514.5,0.07474629]
[1730479140004,3.97592,2515.2,2514.5,4.05159629]
[1730479140213,3.97592,2515.2,2514.7,3.97658]
[1730479140516,3.97562,2515.4,2514.8,0.7581]
[1730479140812,3.97576,2515.3,2514.8,0.7581]
[1730479141190,3.97582,2515.2,2514.8,0.7581]
[1730479141383,3.97567,2515.3,2514.8,0.7581]
[1730479141910,3.97562,2515.4,2514.9,3.97629]
[1730479142095,6.97538,2515.5,2515.0,3.97614]
[1730479142317,6.97538,2515.5,2514.9,3.97629]
[1730479142318,6.97538,2515.5,2514.9,7.95239]
[1730479142531,3.97541,2515.5,2514.9,3.9763]
[1730479142731,3.97553,2515.4,2514.9,3.9763]
[1730479143232,3.97527,2515.6,2515.0,3.97598]
[1730479143401,3.97527,2515.6,2515.1,3.97597]
[1730479143930,3.97527,2515.6,2515.0,3.97613]
[1730479144095,3.97527,2515.6,2515.1,3.97597]
[1730479144300,3.97515,2515.7,2515.2,3.97574]
[1730479144518,3.9745,2516.1,2515.5,0.7862]
[1730479144806,0.7546,2516.3,2515.5,0.7862]
[1730479144807,3.97424,2516.2,2515.6,3.97509]
[1730479145004,4.7288,2516.3,2515.7,3.97502]
[1730479145239,0.7546,2516.3,2515.8,7.94951]
[1730479145550,0.7546,2516.3,2515.6,3.97505]
[1730479145700,8.70303,2516.3,2515.7,3.9749]
[1730479146018,3.97426,2516.2,2515.7,3.9749]
[1730479146442,4.7288,2516.3,2515.7,3.9749]
[1730479146603,3.97385,2516.5,2515.6,3.97519]
[1730479146800,3.97385,2516.5,2515.5,0.7862]
[1730479146801,3.97416,2516.3,2515.7,3.97493]
[1730479147006,3.97394,2516.4,2515.7,3.97493]
[1730479147320,3.97394,2516.4,2515.9,3.97469]
[1730479147696,3.97385,2516.5,2516.0,3.97455]
[1730479147896,0.7883,2516.6,2516.1,3.97439]
[1730479148105,3.97371,2516.6,2516.1,1.201339]
[1730479148303,3.97371,2516.6,2515.8,4.77866]
[1730479148529,3.97371,2516.6,2516.0,3.9744]
[1730479148703,3.97354,2516.7,2516.2,3.97424]
[1730479149097,3.9733,2516.8,2516.2,3.97416]
[1730479149298,3.9733,2516.8,2516.3,3.97401]
[1730479149497,3.97294,2517.1,2515.9,19.77]
[1730479149751,4.72715,2517.2,2516.6,3.97352]
[1730479150098,4.72715,2517.2,2516.6,3.97351]
[1730479150326,4.72715,2517.2,2516.8,3.97321]
[1730479150327,0.7544,2517.2,2516.8,3.97321]
[1730479150509,3.97246,2517.4,2516.7,3.97335]
[1730479150714,3.97246,2517.4,2516.9,3.97302]
[1730479150932,0.7544,2517.5,2517.0,3.97288]
[1730479151135,0.7544,2517.5,2517.1,3.97268]
[1730479151334,3.97182,2517.8,2517.1,3.97268]
[1730479151335,0.7896,2517.8,2517.1,3.97268]
[1730479151639,3.9715,2518.0,2517.4,3.97221]
[1730479151805,3.9715,2518.0,2517.5,3.97219]
[1730479152136,3.9715,2518.0,2517.4,4.78411]
[1730479152137,0.7896,2518.1,2517.6,3.97189]
[1730479152636,0.8127,2518.4,2517.7,0.07943315]
[1730479152846,3.97055,2518.6,2517.7,5.27629294]
[1730479153009,0.8127,2518.7,2518.1,3.97109]
[1730479153217,3.97022,2518.8,2518.2,3.97093]
[1730479153415,4.8938062,2518.9,2518.4,3.97067]
[1730479153600,4.78262,2519.0,2518.0,0.83741576]
[1730479153601,0.96764262,2518.8,2518.1,3.97117]
[1730479153803,0.8127,2519.0,2518.0,0.758]
[1730479154019,3.97007,2518.9,2518.4,3.97077]
[1730479154242,0.8127,2519.0,2518.5,3.9706]
[1730479154426,0.8127,2519.0,2518.1,5.27629294]
[1730479154427,4.79006,2519.3,2518.6,3.97035]
[1730479154597,3.96952,2519.2,2518.6,3.97035]
[1730479154801,4.845478,2519.2,2518.6,3.97035]
[1730479155006,3.96968,2519.1,2518.4,3.97066]
[1730479155214,4.845518,2519.2,2518.6,3.97044]
[1730479155425,4.845518,2519.2,2518.6,7.94081]
[1730479155627,0.875958,2519.2,2518.7,3.97017]
[1730479155834,0.875958,2519.2,2518.6,4.75946]
[1730479155835,4.845518,2519.2,2518.6,4.75946]
[1730479156147,4.845568,2519.2,2518.6,4.75946]
[1730479156306,4.845568,2519.2,2518.7,3.97027]
[1730479156505,0.875958,2519.2,2518.6,4.75943]
[1730479156706,4.845558,2519.2,2518.6,8.72978]
[1730479156904,4.845558,2519.2,2518.7,3.97028]
[1730479157107,4.845558,2519.2,2518.6,8.72981]
[1730479157608,0.875958,2519.2,2518.8,3.97011]
[1730479157809,4.79005,2519.3,2518.8,3.97011]
[1730479158029,6.15322519,2520.0,2518.9,3.96998]
[1730479158030,0.8062,2519.7,2518.9,3.96998]
[1730479158315,3.96948,2519.3,2518.7,7.94039]
[1730479158641,3.96948,2519.3,2518.8,3.97003]
[1730479159045,3.96914,2519.5,2518.9,3.96997]
[1730479159245,3.96914,2519.5,2519.0,3.96982]
[1730479159455,3.96913,2519.5,2519.0,3.96982]
[1730479159643,3.96913,2519.5,2518.9,3.96997]
[1730479159644,3.9693,2519.4,2518.9,3.96997]
[1730479159812,3.96913,2519.5,2518.9,3.96987]
[1730479160149,3.96913,2519.5,2519.0,3.96981]
[1730479161031,3.0,2519.6,2519.1,3.96957]
[1730479161343,3.96906,2519.5,2519.0,3.96968]
[1730479161554,4.77503,2519.7,2518.9,4.366857]
[1730479161555,4.77503,2519.7,2519.1,3.96964]
[1730479161712,3.96961,2519.2,2518.7,19.77]
[1730479162055,3.96985,2519.0,2518.7,19.77]
[1730479162225,3.97007,2518.9,2518.7,19.77]
[1730479162550,3.97039,2518.7,2518.1,19.77]
[1730479162714,4.72644,2518.8,2518.3,3.97092]
[1730479162917,3.9703,2518.7,2518.1,23.7411]
[1730479163320,3.9703,2518.7,2518.2,3.97097]
[1730479163527,0.7563,2518.8,2518.3,3.97091]
[1730479163750,0.7563,2518.8,2518.1,23.74116]
[1730479163919,0.7563,2518.8,2518.3,3.97092]
[1730479164246,3.97008,2518.9,2518.1,23.74116]
[1730479164475,3.97014,2518.8,2518.2,3.97107]